Cogmind - Beta 15 @@@ ROGUE MODE // 2025.10.06 @ 16:26:55 Player: rapskalian Result: Self-destructed Performance ------------- Evolutions (5) 2500 Regions Visited (11) 2200 Robots Destroyed (99) 495 Value Destroyed (3225) 3225 Prototype IDs (4) 80 Alien Tech Used (0) 0 Bonus (-44) -44 TOTAL SCORE: 8456 Bonus ------- Friendly Fire -44 Cogmind --------- Core Integrity 302/1000 Matter 300/300 Energy 100/100 System Corruption 18% Temperature Cool (0) Movement Core (700) Ox13 Location -5/Upper Caves Parts ------- > --- POWER (1) -------- (None) > --- PROPULSION (4) --- (None) > --- UTILITY (9) ------ High-capacity Storage Unit Advanced Visual Processing Unit Advanced Terrain Scan Processor Transport Network Coupler Improved Target Analyzer > --- WEAPON (3) ------- Dirty Datajack > --- INVENTORY (20) --- Antimatter Reactor Medium Treads Improved Titanium Leg Advanced Heat Sink Large Matter Pod (5) Structural Scanner Advanced Recoil Stabilizer Matter Filter Improved Shock Absorption System Improved Shock Absorption System Hacking Suite High-powered Shock Rifle Variable Charge Gun Variable Charge Gun Dispersion Rifle Remote Datajack Advanced Remote Datajack Enhanced Force Lance Peak State ------------ > --- POWER ------------ Antimatter Reactor > --- PROPULSION ------- Flexi-carbon Leg Flexi-carbon Leg Armored Huge Wheel > --- UTILITY ---------- Advanced Cooling System High-capacity Storage Unit Compact Matter Pod Advanced Visual Processing Unit Advanced Terrain Scanner Advanced Terrain Scan Processor Transport Network Coupler Improved Target Analyzer Advanced Hardlight Generator > --- WEAPON ----------- Dispersion Rifle Dispersion Rifle Dirty Datajack > --- INVENTORY -------- Medium Treads Improved Titanium Leg Advanced Heat Sink Large Matter Pod Structural Scanner Advanced Recoil Stabilizer Matter Filter Improved Shock Absorption System Improved Shock Absorption System Hacking Suite High-powered Shock Rifle Variable Charge Gun Variable Charge Gun HERF Cannon Remote Datajack Advanced Remote Datajack Enhanced Force Lance [Rating: 88] Favorites ----------- Power Antimatter Reactor Engine Deuterium Engine Power Core Light Nuclear Core Reactor Antimatter Reactor Propulsion Titanium Leg Treads Light Treads Leg Titanium Leg Wheel Armored Huge Wheel Utility High-capacity Storage Unit Device Advanced Cooling System Storage High-capacity Storage Unit Processor Transport Network Coupler Weapon Enhanced Autogun Energy Gun Advanced Beam Rifle Energy Cannon Long-range Proton Cannon Ballistic Gun Enhanced Autogun Ballistic Cannon Mass Driver Launcher Proton Missile Launcher Special Melee Weapon Dirty Datajack Build | -11 -10 -10 -9 -8 -7 -6 -5 -5 -5 -5 -5 ------- Run | Yrd Mat Min Mat Mat Fac Fac Fac Was Fac Upp Upp Slots Evolved 10 | . . . 2 2 2 2 2 . . . . Power . | . . . . . . . . . . . . Propulsion 2 | . . . 1 . . 1 . . . . . Utility 7 | . . . . 2 2 1 2 . . . . Weapon 1 | . . . 1 . . . . . . . . Parts Attached 111 | 7 10 8 8 16 13 14 8 5 2 14 6 Power 16 | 1 2 2 1 2 2 2 . 2 . . 2 Engine 11 | 1 2 1 1 2 2 2 . . . . . Core 2 | . . 1 . . . . . . . . 1 Reactor 3 | . . . . . . . . 2 . . 1 Propulsion 27 | 2 4 4 6 . 4 2 1 . . 3 1 Treads 4 | . . . 3 . . . . . . 1 . Leg 19 | 2 4 4 3 . 2 1 1 . . 2 . Wheel 4 | . . . . . 2 1 . . . . 1 Hover . | . . . . . . . . . . . . Flight . | . . . . . . . . . . . . Utility 32 | 2 3 1 . 4 5 5 3 1 2 3 3 Device 18 | 1 1 . . 1 4 3 2 . 1 2 3 Storage 5 | 1 1 1 . . 1 . . . 1 . . Processor 9 | . 1 . . 3 . 2 1 1 . 1 . Hackware . | . . . . . . . . . . . . Protection . | . . . . . . . . . . . . Artifact . | . . . . . . . . . . . . Weapon 36 | 2 1 1 1 10 2 5 4 2 . 8 . Energy Gun 12 | . . . . 4 1 2 . . . 5 . Energy Cannon 4 | . . . . . . 1 1 . . 2 . Ballistic Gun 13 | 2 1 . 1 6 1 2 . . . . . Ballistic Cannon 2 | . . . . . . . 1 1 . . . Launcher 4 | . . 1 . . . . 2 1 . . . Special Weapon . | . . . . . . . . . . . . Impact Weapon . | . . . . . . . . . . . . Slashing Weapon . | . . . . . . . . . . . . Piercing Weapon . | . . . . . . . . . . . . Special Melee Weapon 1 | . . . . . . . . . . 1 . Unidentified Prototypes 2 | . . . . 2 . . . . . . . Corrupted Parts 2 | . . . . . . . . . . 2 . System Corruption 8 | . . . . . . . . . . 8 . Parts Lost 37 | . . 1 2 4 8 1 4 . . 4 13 Power 4 | . . . 1 1 . . . . . . 2 Propulsion 11 | . . 1 . . 4 1 1 . . 1 3 Utility 10 | . . . . 1 1 . 2 . . 1 5 Weapon 12 | . . . 1 2 3 . 1 . . 2 3 Highest Loss Streak 10 | . . 1 2 4 2 1 4 . . 1 10 To Critical Strikes 1 | . . . . . . . . . . . 1 Average Backups 17 | 3 7 11 13 18 18 19 19 19 19 18 18 Power 1 | . 1 1 2 1 1 1 1 1 2 2 1 Propulsion 1 | 2 3 4 4 2 1 . . . . . 1 Utility 7 | . 1 3 5 7 7 8 9 8 7 8 8 Weapon 5 | . 1 2 1 7 7 6 5 7 7 5 4 Tool/Special . | . . . . . . . . . . . . Unused Backups 35 | . 4 . 1 3 4 8 3 . 2 1 9 Power 4 | . 1 . . 1 . . 1 . . . 1 Propulsion 4 | . 3 . . . 1 . . . . . . Utility 12 | . . . 1 . 2 2 . . 1 1 5 Weapon 12 | . . . . 2 1 5 2 . 1 . 1 Tool/Special 3 | . . . . . . 1 . . . . 2 Average Slot Usage (%) 90 | . 100 98 97 98 93 85 90 85 81 82 90 Engine 5 | . 14 11 8 8 7 6 5 . . . . Reactor 1 | . . . . . . . . 4 5 5 4 Leg 13 | . 28 26 25 27 14 . 9 5 5 7 12 Wheel 3 | . . . . . 2 12 5 5 5 3 2 Device 7 | . 8 . . 1 6 10 9 10 10 10 15 Storage 11 | . 14 14 11 9 15 13 11 11 11 11 10 Processor 22 | . 5 14 11 25 23 21 27 28 29 24 23 Energy Gun 3 | . . . . 4 7 5 1 . . 4 11 Energy Cannon 1 | . . . . . . 2 . 3 . 2 3 Ballistic Gun 11 | . 28 27 27 21 14 10 8 1 . . . Ballistic Cannon 2 | . . . . . . . 3 7 11 4 . Peak Build Rating 88 | 7 7 10 17 35 44 57 71 76 81 85 88 Average Rating 50 | 5 6 7 11 30 40 51 67 71 76 77 80 On Entrance 38 | . 7 7 10 17 35 37 54 59 76 81 79 Naked Turns . | . . . . . . . . . . . . Heaviest Build 106 | 13 49 48 29 57 68 68 79 98 103 106 87 Greatest Support 60 | 20 20 20 60 51 51 56 28 28 28 60 60 Greatest Overweight (x) 20 | 1 2 2 1 1 2 19 2 3 3 3 20 Average Overweight (x) 1 | . . 1 . . 1 1 2 2 3 2 1 Largest Inventory Capacity 20 | 8 20 20 15 20 20 20 20 20 20 20 20 Average Capacity 18 | 7 10 15 15 20 20 20 20 20 20 20 20 Most Carried 20 | 6 9 15 15 20 20 20 20 20 20 20 20 Average Carried 17 | 3 7 11 13 18 19 19 19 19 19 18 18 Final Capacity 20 | 8 20 15 15 20 20 20 20 20 20 20 20 Final Carried 20 | 6 9 15 15 20 20 20 19 20 20 20 18 Class Distribution -------------------- 39% | Gunner 22% | Scavenger-Skirmisher 13% | Mutant 13% | Scavenger-Gunner 8% | Skirmisher Dominant Class ---------------- Mutant | -10/Materials Mutant | -10/Mines Scavenger-Gunner | -9/Materials Gunner | -8/Materials Gunner | -7/Factory Skirmisher | -6/Factory Scavenger-Gunner | -5/Factory Scavenger-Skirmisher | -5/Waste Scavenger-Skirmisher | -5/Factory Gunner | -5/Upper Caves Scavenger-Skirmisher | -5/Upper Caves Resources | -11 -10 -10 -9 -8 -7 -6 -5 -5 -5 -5 -5 ----------- Run | Yrd Mat Min Mat Mat Fac Fac Fac Was Fac Upp Upp Matter Collected 4129 | 182 464 230 179 523 835 467 381 189 . 581 98 Remotely . | . . . . . . . . . . . . Salvage Created 4520 | 52 569 143 233 523 989 562 472 334 . 442 201 Parts 179 | 4 19 16 17 20 35 27 12 2 . 15 12 Haulers Intercepted 5 | . . . 1 2 . 1 1 . . . . Recyclers Shooed 2 | 1 . . . . 1 . . . . . . Parts Field Recycled . | . . . . . . . . . . . . Retrieved Matter . | . . . . . . . . . . . . Parts Self-Destructed 21 | . . . . . . . . . . 10 11 Prevented 7 | . . . . . . . . . . 6 1 Kills | -11 -10 -10 -9 -8 -7 -6 -5 -5 -5 -5 -5 ------- Run | Yrd Mat Min Mat Mat Fac Fac Fac Was Fac Upp Upp Combat Hostiles Destroyed 75 | . 8 9 6 6 16 7 9 1 . 8 5 Guns 51 | . 8 5 2 6 16 6 2 1 . 1 4 Cannons 11 | . . . . . . 1 7 . . 3 . AOE 13 | . . 4 4 . . . . . . 4 1 Classes Destroyed 14 | 1 4 1 3 1 1 . . 1 . 1 1 Worker 1 | . . . . 1 . . . . . . . Builder 2 | . . . 1 . 1 . . . . . . Tunneler 3 | 2 . . 1 . . . . . . . . Hauler 5 | . . . 1 2 . 1 1 . . . . Recycler 7 | . 2 . . 2 3 . . . . . . Operator 3 | . 1 . . . 1 1 . . . . . Watcher 3 | . 1 . . 1 . 1 . . . . . Swarmer 25 | . . 6 3 3 6 . . . . 4 3 Grunt 29 | . 8 3 1 1 3 4 7 . . 1 1 Duelist 1 | . . . . . . . . . . . 1 Sentry 10 | . . . 2 2 5 1 . . . . . Hunter 3 | . . . . . . . . . . 3 . Programmer 6 | . . . . . 2 2 2 . . . . Compactor 1 | . . . . . . . . 1 . . . Best Kill Streak 7 | 2 4 3 4 3 7 3 4 1 . 3 2 Combat Bots Only 5 | . 3 3 4 3 5 3 4 1 . 3 2 Max Kills in Single Turn 2 | 1 1 2 2 2 2 1 1 1 . 2 1 Gunslinging 1 | . . . . 1 1 . . . . . . Exploded 2 | . . 1 2 . . . . . . 2 1 Melee . | . . . . . . . . . . . . Uniques/NPCs Destroyed . | . . . . . . . . . . . . Combat | -11 -10 -10 -9 -8 -7 -6 -5 -5 -5 -5 -5 -------- Run | Yrd Mat Min Mat Mat Fac Fac Fac Was Fac Upp Upp Hostile Shots Fired 788 | . 40 42 7 55 297 36 76 . 3 56 176 Missed 218 | . 11 9 2 9 83 6 23 . 1 17 57 Hits 570 | . 29 33 5 46 214 30 53 . 2 39 119 Melee 1 | . . . . . . . . . . . 1 Projectile 569 | . 29 33 5 46 214 30 53 . 2 39 118 Critical Strikes 14 | . 2 1 . 4 1 . 4 . . . 2 Part Disruptions 1 | . . . . . 1 . . . . . . Damage Taken 7444 | . 373 457 243 637 1868 501 950 30 54 799 1532 Core 1380 | . 78 96 112 166 180 50 102 . . 103 493 Absorbed by Shields 871 | . . . . . 212 . 99 . . . 560 Core Remaining (%) 73 | 100 . 30 72 69 74 94 . . . . . Volleys Fired 336 | 6 39 21 11 45 64 32 33 12 12 52 9 Largest 3 | 2 2 2 3 3 3 3 3 3 2 3 3 Hottest 366 | 40 40 50 70 141 130 135 135 158 117 366 236 Shots Fired 747 | 11 78 41 32 106 186 89 63 16 13 87 25 Gun 631 | 11 78 36 29 106 186 84 30 1 . 45 25 Cannon 102 | . . . . . . 5 32 14 13 38 . Launcher 14 | . . 5 3 . . . 1 1 . 4 . Special . | . . . . . . . . . . . . Kinetic 525 | 11 78 36 29 84 126 57 57 13 13 21 . Thermal 175 | . . . . 22 60 32 3 . . 40 18 Explosive 10 | . . 5 3 . . . 1 1 . . . Electromagnetic 37 | . . . . . . . 2 2 . 26 7 Robot Hit Streak 18 | 2 8 6 14 17 18 9 17 8 . 4 6 Robot Miss Streak 6 | 2 3 3 1 5 5 4 3 1 1 6 5 Penetration Max . | . . . . . . . . . . . . Secondary Targets 6 | . . . . 1 2 . . . . . 3 Max Gunslinging Chain 1 | . . . . 1 1 . . . . . 1 Shots Hit Robots 438 | 5 46 27 25 66 128 52 39 11 . 18 21 Core Hits 197 | 3 22 16 13 23 45 27 19 4 . 16 9 Critical Kills 4 | . . . . . 1 1 1 1 . . . Critical Parts Destroyed 2 | . . . . . 1 . . . . . 1 Critical Strikes 17 | . . . . 2 4 4 3 1 . 1 2 Burn 7 | . . . . 2 2 3 . . . . . Destroy 6 | . . . . . 2 1 1 1 . . 1 Blast 2 | . . . . . . . 2 . . . . Corrupt 2 | . . . . . . . . . . 1 1 Melee Attacks 7 | . . . . . . . . . . . 7 Impact . | . . . . . . . . . . . . Slashing . | . . . . . . . . . . . . Piercing 7 | . . . . . . . . . . . 7 Sneak Attacks . | . . . . . . . . . . . . Combat Hostiles . | . . . . . . . . . . . . Follow-up Attacks . | . . . . . . . . . . . . Damage Inflicted 9019 | 77 587 573 372 992 2450 1211 1197 448 31 698 383 Guns 6811 | 77 587 273 226 988 2436 1164 512 23 . 150 375 Cannons 1304 | . . . . . . 47 630 303 . 324 . Explosions 819 | . . 300 143 . . . 30 122 . 224 . Melee 8 | . . . . . . . . . . . 8 Ramming 77 | . . . 3 4 14 . 25 . 31 . . Kinetic 5582 | 77 587 273 226 730 1519 754 1078 262 . 76 . Thermal 2175 | . . . . 258 917 457 64 . . 209 270 Explosive 595 | . . 300 143 . . . 30 122 . . . Electromagnetic 559 | . . . . . . . . 41 . 413 105 Impact 23 | . . . . . . . . 23 . . . Slashing . | . . . . . . . . . . . . Piercing 8 | . . . . . . . . . . . 8 Highest Corruption 18 | . 3 3 3 . 2 3 5 5 5 18 18 Average Corruption 7 | . 2 3 2 . 1 2 2 5 5 12 18 Corruption Purged . | . . . . . . . . . . . . Corruption Blocked . | . . . . . . . . . . . . Effects 184 | . 4 11 2 . 8 6 11 13 13 86 30 Message Errors 43 | . . 3 . . 2 . 6 2 1 23 6 Matter Fused 51 | . 1 3 . . 3 4 2 5 5 16 12 Heat Flow Errors 18 | . 1 . . . 1 1 1 1 2 8 3 Energy Discharges 25 | . 1 2 1 . 1 . 2 2 3 12 1 Parts Rejected 1 | . . . . . . . . . . 1 . Parts Fused 2 | . . . 1 . . . . . . 1 . Data Loss (minor) 17 | . . . . . . . . . . 13 4 Data Loss (major) 5 | . . 1 . . . 1 . 1 . 1 1 Misfires 11 | . . . . . . . . 2 1 8 . Alerts 4 | . 1 1 . . 1 . . . . 1 . Misdirections 3 | . . . . . . . . . . . 3 Weapon Failures 4 | . . 1 . . . . . . 1 2 . Overload Shots 1 | . . . . . . . . . . 1 . Overflow Damage 142 | . . 57 48 . . . 37 . . . . Projectiles 37 | . . . . . . . 37 . . . . Explosions 105 | . . 57 48 . . . . . . . . Melee . | . . . . . . . . . . . . Knockbacks 8 | . . . 1 . . . 7 . . . . Impact 1 | . . . 1 . . . . . . . . Kinetic 6 | . . . . . . . 6 . . . . Secondary 1 | . . . . . . . 1 . . . . Self-Inflicted Damage 373 | . . 112 173 . 2 . 12 31 15 28 . Shots 13 | . . 5 4 . . . . 1 . 3 . Rammed 7 | . . . 1 . 1 . 3 . 2 . . Targets Rammed 12 | . . . 2 2 3 . 3 . 2 . . Kicked 4 | . . . . 2 2 . . . . . . Crushed 1 | . . . 1 . . . . . . . . Highest Temperature 471 | . 130 12 24 356 471 170 206 43 68 241 254 Average Temperature 86 | . 30 8 10 96 125 44 110 43 46 81 70 Received Heat Transfer 1684 | . 240 123 18 270 388 192 258 . . 36 159 Effects 7 | . . . . . 7 . . . . . . Shutdowns 2 | . . . . . 2 . . . . . . Matter Decay 1 | . . . . . 1 . . . . . . Short Circuit 1 | . . . . . 1 . . . . . . Damage (major) 3 | . . . . . 3 . . . . . . Siege Activations . | . . . . . . . . . . . . Martial Activations . | . . . . . . . . . . . . Shielding Activations . | . . . . . . . . . . . . Robots Disrupted . | . . . . . . . . . . . . Combat Hostiles . | . . . . . . . . . . . . Robots Corrupted . | . . . . . . . . . . . . Combat Hostiles . | . . . . . . . . . . . . Parts Fried 4 | . . . . . . . . . . 4 . Impact Corruptions . | . . . . . . . . . . . . Robots Melted . | . . . . . . . . . . . . Combat Hostiles . | . . . . . . . . . . . . Parts Melted 11 | . . . . 2 4 4 1 . . . . Heat Transferred 4646 | . . . . 634 1922 1261 150 . . 309 370 Parts Sabotaged . | . . . . . . . . . . . . Parts Stolen . | . . . . . . . . . . . . Parts Stripped . | . . . . . . . . . . . . Power Chain Reactions 1 | . . . . . . . . . . 1 . Alert | -11 -10 -10 -9 -8 -7 -6 -5 -5 -5 -5 -5 ------- Run | Yrd Mat Min Mat Mat Fac Fac Fac Was Fac Upp Upp Maximum Alert Level 1 | . . . 1 . . . 1 . . . . Low Security (%) 97 | 100 100 100 96 100 100 100 80 100 100 . . Level 1 2 | . . . 3 . . . 19 . . . . Level 2 . | . . . . . . . . . . . . Level 3 . | . . . . . . . . . . . . Level 4 . | . . . . . . . . . . . . Level 5 . | . . . . . . . . . . . . High Security . | . . . . . . . . . . . . Max Security . | . . . . . . . . . . . . Peak Influence 241 | 10 83 134 204 59 133 65 241 73 8 . . Initial 73 | . . 7 3 59 20 25 25 73 . . . Average 35 | . 24 57 137 9 41 11 70 13 . . . Influence Increases 2658 | 10 231 247 311 218 480 204 485 26 26 230 190 Destroy 0b10 Robot/C 1480 | . 160 180 120 120 320 140 180 . . 160 100 Destroy 0b10 Robot/NC 125 | 10 20 . 15 30 25 15 5 . . 5 . Destroy Leader 346 | . 32 40 42 36 100 44 32 . . 20 . Successful Hack 25 | . 18 . . . . . 7 . . . . Disable Machine 90 | . . . 45 30 . . 15 . . . . Destroy Structure 292 | . 1 27 44 2 5 5 156 26 26 . . Lose Combat Pursuer 300 | . . . 45 . 30 . 90 . . 45 90 Influence Decreases 2658 | 10 212 256 180 314 473 203 327 237 26 230 190 Entered New Map 319 | . . 12 7 82 25 27 28 138 . . . Time Decay 2038 | 10 212 234 153 222 391 166 239 99 26 208 78 Lost Part 227 | . . 10 20 10 57 10 40 . . 8 72 Lost Ally 74 | . . . . . . . 20 . . 14 40 Squads Dispatched 21 | . 3 . 1 1 6 3 4 . 2 . 1 Investigation 5 | . 1 . 1 . 1 . 1 . 1 . . Extermination 5 | . . . . . 2 1 1 . 1 . . Reinforcement 6 | . 2 . . . . 2 2 . . . . Assault 1 | . . . . . . . . . . . 1 Garrison 4 | . . . . 1 3 . . . . . . Intercept . | . . . . . . . . . . . . Searches Triggered . | . . . . . . . . . . . . Construction Impeded 2 | . . . . . . . 2 . . . . Haulers Reinforced 1 | . . . . . . 1 . . . . . Active Scanning Responses . | . . . . . . . . . . . . Cargo Convoy Interrupts 1 | . . . . . . . 1 . . . . Stealth | -11 -10 -10 -9 -8 -7 -6 -5 -5 -5 -5 -5 --------- Run | Yrd Mat Min Mat Mat Fac Fac Fac Was Fac Upp Upp Distress Signals 5 | . 2 . 1 . . . 1 . 1 . . Communications Jammed . | . . . . . . . . . . . . Distress Signals . | . . . . . . . . . . . . Times Spotted 135 | . 14 13 9 14 24 10 15 1 4 10 21 Peak Tracking Total 10 | . 4 3 4 2 4 3 6 1 1 3 10 Tactical Retreats 11 | . . . 1 . 2 . 1 . . 2 5 Traps | -11 -10 -10 -9 -8 -7 -6 -5 -5 -5 -5 -5 ------- Run | Yrd Mat Min Mat Mat Fac Fac Fac Was Fac Upp Upp Traps Triggered 8 | . 3 . 2 . . . 3 . . . . Indirectly . | . . . . . . . . . . . . Trap Hack Attempts . | . . . . . . . . . . . . Triggered . | . . . . . . . . . . . . Disarmed . | . . . . . . . . . . . . Reprogrammed . | . . . . . . . . . . . . Reused . | . . . . . . . . . . . . Traps Extracted . | . . . . . . . . . . . . Installed . | . . . . . . . . . . . . Triggered . | . . . . . . . . . . . . Machines | -11 -10 -10 -9 -8 -7 -6 -5 -5 -5 -5 -5 ---------- Run | Yrd Mat Min Mat Mat Fac Fac Fac Was Fac Upp Upp Machines Disabled 6 | . . . 3 2 . . 1 . . . . Max in Single Turn 3 | . . . 3 1 . . 1 . . . . Machines Repaired . | . . . . . . . . . . . . Machines Dismantled . | . . . . . . . . . . . . Machines Sabotaged . | . . . . . . . . . . . . Overloaded Fab Kills . | . . . . . . . . . . . . Hacking | -11 -10 -10 -9 -8 -7 -6 -5 -5 -5 -5 -5 --------- Run | Yrd Mat Min Mat Mat Fac Fac Fac Was Fac Upp Upp Machines Accessed 12 | . 3 . 1 . 3 1 2 . 2 . . Terminals 7 | . 2 . . . 1 1 1 . 2 . . Fabricators 2 | . . . . . 1 . 1 . . . . Repair Stations . | . . . . . . . . . . . . Recycling Units 3 | . 1 . 1 . 1 . . . . . . Scanalyzers . | . . . . . . . . . . . . Garrison Access . | . . . . . . . . . . . . Total Hacks 39 | . 12 . 2 . 15 2 5 . 3 . . Successful 15 | . 5 . 2 . 6 . 2 . . . . Failed 24 | . 7 . . . 9 2 3 . 3 . . Catastrophic 6 | . 2 . . . 1 . 1 . 2 . . Database Lockouts . | . . . . . . . . . . . . Manual 5 | . 1 . 2 . . . 1 . 1 . . Terminals 18 | . 8 . . . 2 2 3 . 3 . . Fabricators 5 | . . . . . 3 . 2 . . . . Repair Stations . | . . . . . . . . . . . . Recycling Units 16 | . 4 . 2 . 10 . . . . . . Scanalyzers . | . . . . . . . . . . . . Garrison Access . | . . . . . . . . . . . . Terminal Hacks 4 | . 3 . . . . . 1 . . . . Prototype ID Bank 1 | . 1 . . . . . . . . . . Recall Reinforcements 1 | . 1 . . . . . . . . . . Hauler Manifests 1 | . 1 . . . . . . . . . . Registered Components 1 | . . . . . . . 1 . . . . Fabricator Hacks 2 | . . . . . 1 . 1 . . . . Build 2 | . . . . . 1 . 1 . . . . Repair Station Hacks . | . . . . . . . . . . . . Recycling Unit Hacks 9 | . 2 . 2 . 5 . . . . . . Recycle Component 2 | . . . . . 2 . . . . . . Process 2 | . . . . . 2 . . . . . . Report Inventory 2 | . 1 . 1 . . . . . . . . Retrieve Matter 2 | . . . 1 . 1 . . . . . . Retrieve Components 1 | . 1 . . . . . . . . . . Scanalyzer . | . . . . . . . . . . . . Garrison Access Hacks . | . . . . . . . . . . . . Unauthorized Hacks . | . . . . . . . . . . . . Terminals . | . . . . . . . . . . . . Fabricators . | . . . . . . . . . . . . Repair Stations . | . . . . . . . . . . . . Recycling Units . | . . . . . . . . . . . . Scanalyzers . | . . . . . . . . . . . . Garrison Access . | . . . . . . . . . . . . Data Cores Recovered 2 | . . . . . 1 1 . . . . . Used . | . . . . . . . . . . . . Hacking Detections 11 | . 3 . 1 . 3 1 1 . 2 . . Full Trace Events 3 | . . . 1 . 1 . . . 1 . . Feedback Events . | . . . . . . . . . . . . Feedback Blocked . | . . . . . . . . . . . . Robot Schematics Acquired . | . . . . . . . . . . . . Robots Built 2 | . . . . . . . 2 . . . . Authchips . | . . . . . . . . . . . . Time 40 | . . . . . . . 40 . . . . Total Robot Build Rating 2 | . . . . . . . 2 . . . . Part Schematics Acquired . | . . . . . . . . . . . . Parts Built 2 | . . . . . 2 . . . . . . Authchips . | . . . . . . . . . . . . Time 84 | . . . . . 84 . . . . . . Total Part Build Rating 8 | . . . . . 8 . . . . . . Parts Repaired . | . . . . . . . . . . . . Time . | . . . . . . . . . . . . Parts Recycled 2 | . . . . . 2 . . . . . . Recycled Matter 175 | . . . . . 175 . . . . . . Retrieved Matter 105 | . . . . . 105 . . . . . . Retrieved Components 1 | . 1 . . . . . . . . . . Parts Scanalyzed . | . . . . . . . . . . . . Part Schematics Acquired . | . . . . . . . . . . . . Parts Damaged . | . . . . . . . . . . . . Bothacking | -11 -10 -10 -9 -8 -7 -6 -5 -5 -5 -5 -5 ------------ Run | Yrd Mat Min Mat Mat Fac Fac Fac Was Fac Upp Upp Used RIF Installer . | . . . . . . . . . . . . Robots Hacked . | . . . . . . . . . . . . Non-combat . | . . . . . . . . . . . . Combat . | . . . . . . . . . . . . Robot Hacks Applied . | . . . . . . . . . . . . Relay Couplers Released . | . . . . . . . . . . . . Fabnet Peak Effective % . | . . . . . . . . . . . . Robots Rewired . | . . . . . . . . . . . . Allies Hacked . | . . . . . . . . . . . . Hacks Repelled . | . . . . . . . . . . . . Allies | -11 -10 -10 -9 -8 -7 -6 -5 -5 -5 -5 -5 -------- Run | Yrd Mat Min Mat Mat Fac Fac Fac Was Fac Upp Upp Total Allies 5 | . . . . . . . 2 1 . . 2 Largest Group 2 | . . . . . . . 2 1 1 . 1 Highest-Rated Group 31 | . . . . . . . 20 31 31 . 26 Highest-Rated Ally 31 | . . . . . . . 10 31 31 . 26 Total Orders 24 | . . . . . . . 14 . . 10 . ROAM 2 | . . . . . . . . . . 2 . FOLLOW 3 | . . . . . . . 3 . . . . TUNNEL 11 | . . . . . . . 11 . . . . EXPLORE 8 | . . . . . . . . . . 8 . Ally Attacks 11 | . . . . . . . . 3 4 . 4 Total Damage 157 | . . . . . . . . 43 47 . 67 Kills . | . . . . . . . . . . . . Allies Corrupted . | . . . . . . . . . . . . Allies Melted . | . . . . . . . . . . . . Intel | -11 -10 -10 -9 -8 -7 -6 -5 -5 -5 -5 -5 ------- Run | Yrd Mat Min Mat Mat Fac Fac Fac Was Fac Upp Upp Active Infowar (turns) 8440 | 12 386 . . 1224 1518 944 934 489 404 2154 375 Optics 7852 | . . . . 1034 1518 944 934 489 404 2154 375 Terrain 2362 | . . . . 75 106 . . 482 347 977 375 Structural 651 | . 40 . . 2 . 609 . . . . . Seismic 456 | 12 346 . . 98 . . . . . . . T.N.C. 8042 | . . . . 1224 1518 944 934 489 404 2154 375 Robot Analysis Total . | . . . . . . . . . . . . Derelict Logs Recovered 5 | . . 2 . . . . . . . 1 2 Drone Launches 11 | . . . . . . . . . 2 9 . Drone Recoveries 9 | . . . . . . . . . 2 7 . Exploration | -11 -10 -10 -9 -8 -7 -6 -5 -5 -5 -5 -5 ------------- Run | Yrd Mat Min Mat Mat Fac Fac Fac Was Fac Upp Upp Turns Passed 9842 | 90 652 529 370 1226 1518 944 934 489 404 2154 532 Spaces Moved 4852 | 46 279 230 224 500 692 671 524 249 247 922 268 Core 5 | 2 . . . . . 1 . . . . 2 Treads 42 | . . . 42 . . . . . . . . Legs 1874 | 44 279 230 182 500 368 . . . . 196 75 Wheels 2931 | . . . . . 324 670 524 249 247 726 191 Hover . | . . . . . . . . . . . . Flight . | . . . . . . . . . . . . Fastest Speed 50 | 50 120 190 120 130 105 105 130 130 145 130 130 Average Speed 150 | 124 145 196 129 189 165 116 130 143 145 154 154 Slowest Speed 1050 | 190 260 260 240 200 200 1000 130 145 145 193 1050 Overloaded Moves . | . . . . . . . . . . . . Propulsion Burnouts . | . . . . . . . . . . . . Robots Hopped . | . . . . . . . . . . . . Potential Cave-ins 4 | . . . . . . . 2 . 2 . . Cave-ins Triggered 1 | . . . . . . . . . . 1 . Exploration Rate (%) 37 | 4 44 72 20 35 12 17 8 78 7 97 52 Regions Visited 11 Branch Regions 3 Pre-discovered Areas . | . . . . . . . . . . . . Known Exits Taken 1 | . . . . . . . . . . 1 . Unknown Exits Taken 8 | 1 1 1 1 1 1 1 . . 1 . . Scrap Searched 3 | . . . . . . . . . . 1 2 Spaces Dug 38 | . . . . . . . 7 4 11 16 . Terrain Destroyed 168 | . . 30 53 . . . 24 16 14 31 . Melee . | . . . . . . . . . . . . Projectile 63 | . . . . . . . 16 6 14 27 . AOE 105 | . . 30 53 . . . 8 10 . 4 . Terrain Rammed . | . . . . . . . . . . . . Walls Destroyed . | . . . . . . . . . . . . Machines Disabled . | . . . . . . . . . . . . Actions | -11 -10 -10 -9 -8 -7 -6 -5 -5 -5 -5 -5 --------- Run | Yrd Mat Min Mat Mat Fac Fac Fac Was Fac Upp Upp Total 6847 | 64 452 265 285 721 968 774 726 370 284 1570 368 Wait 1281 | . 106 3 9 116 161 15 147 89 8 557 70 Move 4842 | 45 278 229 223 499 691 670 524 248 246 921 268 Hop . | . . . . . . . . . . . . Pick Up 97 | 6 6 1 12 14 15 17 7 5 5 8 1 Fast Attach 36 | 7 1 1 6 6 2 4 . 1 1 5 2 Attach 39 | . . . 2 8 7 2 5 3 1 8 3 Detach 14 | . . . . 8 . . . 1 2 2 1 Swap 82 | . 10 10 6 12 11 13 3 3 . 10 4 Drop 96 | . 12 . 14 11 14 21 4 4 7 6 3 Fire 336 | 6 39 21 11 45 64 32 33 12 12 52 9 Melee 7 | . . . . . . . . . . . 7 Ram 6 | . . . . . 1 . 3 . 2 . . Kick 4 | . . . . 2 2 . . . . . . Crush 2 | . . . 2 . . . . . . . . Escape Stasis . | . . . . . . . . . . . . Rewire 5 | . . . . . . . . 4 . 1 . Trap . | . . . . . . . . . . . . Miscellaneous . | . . . . . . . . . . . . Route ------- -11/Scrapyard -10/Materials (discovered 3 exits: *Mat / [*Min x2]) -10/Mines -9/Materials -8/Materials (discovered 2 exits: *Fac / Sto) -7/Factory -6/Factory -5/Factory -5/Waste -5/Factory -5/Upper Caves -5/Upper Caves History --------- Turn | Location | Event 19 | -11/Scrapyard | Discovered new exit (range 15) 91 | -11/Scrapyard | Entered Materials 309 | -10/Materials | Build established: Mutant 340 | -10/Materials | Discovered new exit (range 12) 466 | -10/Materials | Discovered new exit (range 16) 657 | -10/Materials | Discovered new exit (range 16) 743 | -10/Materials | Entered Mines 901 | -10/Mines | Core integrity fell below 50% 1053 | -10/Mines | Found a hidden stash of uninstalled traps 1259 | -10/Mines | Discovered new exit (range 8) 1272 | -10/Mines | Entered Materials 1272 | -9/Materials | Evolved 2 slots: Propulsion x1, Weapon x1 1583 | -9/Materials | Discovered new exit (range 8) 1642 | -9/Materials | Entered another Materials area 1642 | -8/Materials | Evolved 2 slots: Utility x2 1643 | -8/Materials | Identified exit to Storage 1851 | -8/Materials | Lost 4 parts (1p1u2w) 2167 | -8/Materials | Build established: Gunner 2803 | -8/Materials | Discovered new exit (range 12) 2824 | -8/Materials | Garrison activated, responded to threat 2868 | -8/Materials | Entered Factory 2868 | -7/Factory | Evolved 2 slots: Utility x2 3876 | -7/Factory | Fabricated Arm. Huge Wheel (x2) 4006 | -7/Factory | Garrison activated, responded to threat 4360 | -7/Factory | Discovered new exit (range 20) 4386 | -7/Factory | Entered another Factory area 4386 | -6/Factory | Evolved 2 slots: Propulsion x1, Utility x1 4701 | -6/Factory | Build established: Skirmisher 5156 | -6/Factory | Discovered new exit (range 10) 5330 | -6/Factory | Entered another Factory area 5330 | -5/Factory | Evolved 2 slots: Utility x2 5602 | -5/Factory | Build established: Scavenger-Gunner 5679 | -5/Factory | Fabricated T-07 Excavator (x2) 6129 | -5/Factory | Lost 4 parts (1n2u1w) 6142 | -5/Factory | Cargo convoy interrupted 6264 | -5/Factory | Sucked down chute 6264 | -5/Factory | Entered Waste 6264 | -5/Waste | The area was eerily silent 6265 | -5/Waste | Met a frightened Derelict 6424 | -5/Waste | A Compactor rumbled back to life 6426 | -5/Waste | Spotted C-40 Crusher 6428 | -5/Waste | Destroyed C-40 Crusher 6690 | -5/Waste | Build established: Scavenger-Skirmisher 6710 | -5/Waste | Discovered new exit (range 20) 6753 | -5/Waste | Entered Factory 6753 | -5/Factory | Accompanied by 1 ally 7110 | -5/Factory | Discovered new exit (range 18) 7157 | -5/Factory | Entered Upper Caves 7391 | -5/Upper Caves | Build established: Gunner 7492 | -5/Upper Caves | Identified exit to Upper Caves 7768 | -5/Upper Caves | Crushed by falling debris 7777 | -5/Upper Caves | System corruption reached 10% 8640 | -5/Upper Caves | Build established: Scavenger-Skirmisher 8820 | -5/Upper Caves | Attracted the attention of an 0b10 checkpoint 9311 | -5/Upper Caves | Entered another Upper Caves area 9452 | -5/Upper Caves | Encountered a Warlord checkpoint 9589 | -5/Upper Caves | Learned Factory emergency access door positions 9612 | -5/Upper Caves | Attracted the attention of an 0b10 outpost 9676 | -5/Upper Caves | Lost 3 parts (1p1u1w) 9837 | -5/Upper Caves | Core integrity fell below 50% 9843 | -5/Upper Caves | Self-destructed Last Messages --------------- 09767_ Splicing L-41 Fighter... Unable to locate active power source. 09770_ Splicing L-41 Fighter... Rewriting IFF filter. 09781_ Acquired Unknown Power Core. 09781_ Identified Neutrino Core. 09785_ Adv. Cooling System destroyed. 09793_ System corrupted: Matter fused (-9). 09793_ Flexi-carbon Leg destroyed. 09816_ System corrupted: Matter fused (-5). 09817_ Critical hit (Destroy). 09817_ Neutrino Core destroyed. 09819_ Adv. Terrain Scanner destroyed. 09820_ Flexi-carbon Leg destroyed. 09821_ Arm. Huge Wheel destroyed. 09822_ Dispersion Rifle destroyed. 09824_ Adv. Hardlight Generator destroyed. 09832_ EM#&6F&AGB3RZF